[Event "ETCC Open 2013"]
[Site "Warsaw"]
[Date "2013.11.12"]
[Round "5"]
[White "Karttunen, Mika"]
[Black "Blagojevic, Dragisa"]
[Result "0-1"]
[ECO "D45"]
[WhiteElo "2440"]
[BlackElo "2524"]
[PlyCount "160"]
[EventDate "2013.??.??"]
[EventCountry "POL"]
[WhiteTeam "Finnland"]
[BlackTeam "Montenegro"]
[WhiteTeamCountry "FIN"]
[BlackTeamCountry "MNE"]
[TimeControl "40/5400+30:1800+30"]

1. c4 {[%emt 0:00:00]} e6 {[%emt 0:00:00]} 2. Nc3 {[%emt 0:00:02]} d5 {[%emt 0:
00:00]} 3. d4 {[%emt 0:00:23]} c6 {[%emt 0:00:00]} 4. Nf3 {[%emt 0:01:18]} Nf6
{[%emt 0:00:00]} 5. e3 {[%emt 0:01:04]} Nbd7 {[%emt 0:00:27]} 6. b3 {[%emt 0:
00:34]} Bb4 {[%emt 0:02:12]} 7. Bd2 {[%emt 0:00:36]} Qe7 {[%emt 0:01:31]} 8.
Be2 {[%emt 0:10:09]} b6 {[%emt 0:01:21]} 9. O-O {[%emt 0:00:37]} O-O {[%emt 0:
06:05]} 10. Ne1 {[%emt 0:14:27]} Bb7 {[%emt 0:14:03]} 11. Nd3 {[%emt 0:01:00]}
Bd6 {[%emt 0:00:36]} 12. f4 {[%emt 0:02:51]} c5 {[%emt 0:09:48]} 13. Ne5 {
[%emt 0:06:18]} Rfc8 {[%emt 0:08:34]} 14. Bd3 {[%emt 0:07:49]} cxd4 {[%emt 0:
10:06]} 15. exd4 {[%emt 0:00:07]} Bb4 {[%emt 0:00:50]} 16. Qe1 {[%emt 0:08:41]}
Nf8 {[%emt 0:11:19]} 17. cxd5 {[%emt 0:17:12]} Bxc3 {[%emt 0:07:24]} 18. Bxc3 {
[%emt 0:00:17]} Nxd5 {[%emt 0:00:09]} 19. Bd2 {[%emt 0:00:38]} f5 {[%emt 0:02:
49]} 20. Nc4 {[%emt 0:12:36]} Qd8 {[%emt 0:01:27]} 21. Rd1 {[%emt 0:06:55]} Nf6
{[%emt 0:00:37]} 22. Bc3 {[%emt 0:01:19]} Rc7 {[%emt 0:01:03]} 23. Bb2 {[%emt
0:00:28]} Rac8 {[%emt 0:00:37]} 24. Rf2 {[%emt 0:03:44]} Be4 {[%emt 0:01:04]}
25. Bf1 {[%emt 0:01:34]} b5 {[%emt 0:02:20]} 26. Ne3 {[%emt 0:00:47]} a6 {
[%emt 0:04:23]} 27. a4 {[%emt 0:00:21]} Rb7 {[%emt 0:02:35]} 28. axb5 {[%emt 0:
00:17]} axb5 {[%emt 0:00:05]} 29. Ba3 {[%emt 0:00:29]} Ng6 {[%emt 0:00:50]} 30.
Bc5 {[%emt 0:00:38]} Ra8 {[%emt 0:03:19]} 31. g3 {[%emt 0:00:51]} Ne7 {[%emt 0:
00:15]} 32. Nc2 {[%emt 0:01:04]} Ned5 {[%emt 0:02:32]} 33. Ra1 {[%emt 0:00:49]}
h6 {[%emt 0:02:15]} 34. Na3 {[%emt 0:00:25]} Qd7 {[%emt 0:00:49]} 35. h3 {
[%emt 0:00:19]} Nc7 {[%emt 0:00:27]} 36. Nc2 {[%emt 0:00:35]} Rbb8 {[%emt 0:00:
37]} 37. Nb4 {[%emt 0:00:21]} Bb7 {[%emt 0:00:31]} 38. Rd1 {[%emt 0:00:49]} Ne4
{[%emt 0:03:11]} 39. Rc2 {[%emt 0:00:04]} Nd5 {[%emt 0:00:29]} 40. Nd3 {[%emt
0:00:00]} Ndf6 {[%emt 0:00:00]} 41. Nb4 {[%emt 0:07:38]} Ra3 {[%emt 0:07:35]}
42. Rd3 {[%emt 0:03:16]} Rba8 {[%emt 0:02:40]} 43. Rc1 {[%emt 0:02:30]} Qd8 {
[%emt 0:07:59]} 44. Bg2 {[%emt 0:07:00]} Qa5 {[%emt 0:01:19]} 45. Be7 {[%emt 0:
03:31]} Nd5 {[%emt 0:08:16]} 46. Nxd5 {[%emt 0:00:49]} Qxe1+ {[%emt 0:00:09]}
47. Rxe1 {[%emt 0:00:03]} Ra1 {[%emt 0:00:13]} 48. Nf6+ {[%emt 0:02:18]} Nxf6 {
[%emt 0:03:49]} 49. Rde3 {[%emt 0:02:53]} Bxg2 {[%emt 0:00:56]} 50. Bxf6 {
[%emt 0:01:14]} Bd5 {[%emt 0:01:09]} 51. Be5 {[%emt 0:00:36]} Rxe1+ {[%emt 0:
00:09]} 52. Rxe1 {[%emt 0:00:04]} Bxb3 {[%emt 0:00:05]} 53. d5 {[%emt 0:03:44]}
exd5 {[%emt 0:01:08]} 54. Ra1 {[%emt 0:00:04]} Rxa1+ {[%emt 0:03:38]} 55. Bxa1
{[%emt 0:00:04]} b4 {[%emt 0:00:21]} 56. Kf2 {[%emt 0:00:26]} Bc4 {[%emt 0:00:
46]} 57. Bd4 {[%emt 0:00:42]} Kf7 {[%emt 0:00:27]} 58. Bc5 {[%emt 0:00:05]} b3
{[%emt 0:00:06]} 59. Bd4 {[%emt 0:00:03]} Bd3 {[%emt 0:01:24]} 60. Bb2 {[%emt
0:00:46]} Be4 {[%emt 0:00:17]} 61. Bd4 {[%emt 0:00:08]} g5 {[%emt 0:00:19]} 62.
h4 {[%emt 0:00:10]} Kg6 {[%emt 0:00:31]} 63. fxg5 {[%emt 0:01:32]} hxg5 {[%emt
0:00:07]} 64. hxg5 {[%emt 0:00:14]} Kxg5 {[%emt 0:00:05]} 65. Be5 {[%emt 0:01:
50]} Kg4 {[%emt 0:00:09]} 66. Bb2 {[%emt 0:00:13]} Bd3 {[%emt 0:00:21]} 67. Be5
{[%emt 0:00:12]} Bc4 {[%emt 0:00:20]} 68. Kg2 {[%emt 0:01:36]} Bb5 {[%emt 0:00:
08]} 69. Kf2 {[%emt 0:00:03]} Bc6 {[%emt 0:00:24]} 70. Bb2 {[%emt 0:00:06]} Bb7
{[%emt 0:00:19]} 71. Bc3 {[%emt 0:00:09]} Ba6 {[%emt 0:00:07]} 72. Be5 {[%emt
0:00:10]} Bc4 {[%emt 0:00:17]} 73. Kg2 {[%emt 0:00:11]} Be2 {[%emt 0:00:11]}
74. Kf2 {[%emt 0:01:57]} Bf3 {[%emt 0:00:08]} 75. Bb2 {[%emt 0:00:23]} f4 {
[%emt 0:00:22]} 76. gxf4 {[%emt 0:00:05]} Kxf4 {[%emt 0:00:04]} 77. Bc3 {[%emt
0:01:55]} Ke4 {[%emt 0:00:18]} 78. Bb2 {[%emt 0:00:18]} Bh5 {[%emt 0:00:13]}
79. Ke1 {[%emt 0:00:21]} Kd3 {[%emt 0:00:06]} 80. Ba1 {[%emt 0:00:56]} Kc2 {
[%emt 0:00:07]} 0-1

[Event "ETCC Open 2013"]
[Site "Warsaw"]
[Date "2013.11.12"]
[Round "5"]
[White "Nevednichy, Vladislav"]
[Black "Moiseenko, Alexander"]
[Result "0-1"]
[ECO "B30"]
[WhiteElo "2590"]
[BlackElo "2709"]
[PlyCount "163"]
[EventDate "2013.??.??"]
[EventCountry "POL"]
[WhiteTeam "Rumänien"]
[BlackTeam "Ukraine"]
[WhiteTeamCountry "ROU"]
[BlackTeamCountry "UKR"]
[TimeControl "40/5400+30:1800+30"]

1. e4 {[%emt 0:00:00]} c5 {[%emt 0:00:00]} 2. Nf3 {[%emt 0:00:00]} Nc6 {[%emt
0:00:00]} 3. Bb5 {[%emt 0:00:00]} e6 {[%emt 0:00:00]} 4. Bxc6 {[%emt 0:00:00]}
bxc6 {[%emt 0:00:00]} 5. b3 {[%emt 0:00:47]} f6 {[%emt 0:04:12]} 6. Bb2 {[%emt
0:02:32]} Nh6 {[%emt 0:06:31]} 7. e5 {[%emt 0:00:41]} d6 {[%emt 0:06:45]} 8.
exd6 {[%emt 0:01:50]} Bxd6 {[%emt 0:00:13]} 9. d3 {[%emt 0:01:37]} O-O {[%emt
0:00:36]} 10. Nbd2 {[%emt 0:01:40]} e5 {[%emt 0:00:30]} 11. Ne4 {[%emt 0:03:03]
} Be7 {[%emt 0:13:50]} 12. Ng3 {[%emt 0:09:59]} c4 {[%emt 0:17:09]} 13. bxc4 {
[%emt 0:19:09]} Bb4+ {[%emt 0:03:14]} 14. c3 {[%emt 0:00:51]} Bd6 {[%emt 0:04:
50]} 15. O-O {[%emt 0:01:31]} c5 {[%emt 0:02:30]} 16. d4 {[%emt 0:10:27]} Bb7 {
[%emt 0:01:11]} 17. Re1 {[%emt 0:05:22]} Rb8 {[%emt 0:05:51]} 18. Bc1 {[%emt 0:
02:28]} Nf7 {[%emt 0:01:01]} 19. Nf5 {[%emt 0:16:18]} cxd4 {[%emt 0:03:34]} 20.
cxd4 {[%emt 0:09:07]} Bb4 {[%emt 0:00:49]} 21. Re3 {[%emt 0:00:03]} g6 {[%emt
0:03:23]} 22. Ng3 {[%emt 0:01:32]} f5 {[%emt 0:02:15]} 23. Rb3 {[%emt 0:07:50]}
f4 {[%emt 0:04:11]} 24. Nf1 {[%emt 0:03:13]} a5 {[%emt 0:07:39]} 25. d5 {[%emt
0:00:20]} Ba6 {[%emt 0:03:11]} 26. a3 {[%emt 0:00:02]} Bc5 {[%emt 0:02:40]} 27.
N1d2 {[%emt 0:00:04]} Rxb3 {[%emt 0:01:55]} 28. Qxb3 {[%emt 0:00:25]} Qc7 {
[%emt 0:01:54]} 29. Bb2 {[%emt 0:00:13]} Rb8 {[%emt 0:00:41]} 30. Qc3 {[%emt 0:
00:20]} Qb6 {[%emt 0:00:15]} 31. Rb1 {[%emt 0:00:30]} Bxf2+ {[%emt 0:00:19]}
32. Kh1 {[%emt 0:00:02]} Qe3 {[%emt 0:01:16]} 33. Nxe5 {[%emt 0:02:37]} Qxc3 {
[%emt 0:02:42]} 34. Bxc3 {[%emt 0:00:01]} Rxb1+ {[%emt 0:00:09]} 35. Nxb1 {
[%emt 0:00:04]} Nxe5 {[%emt 0:00:42]} 36. Bxe5 {[%emt 0:00:02]} Bxc4 {[%emt 0:
00:32]} 37. d6 {[%emt 0:00:50]} Kf7 {[%emt 0:00:29]} 38. Bxf4 {[%emt 0:01:17]}
Ke6 {[%emt 0:00:12]} 39. h3 {[%emt 0:01:55]} Bc5 {[%emt 0:00:21]} 40. Bd2 {
[%emt 0:00:00]} Bd3 {[%emt 0:00:00]} 41. Nc3 {[%emt 0:01:10]} Bxd6 {[%emt 0:07:
41]} 42. Nd1 {[%emt 0:05:10]} a4 {[%emt 0:02:19]} 43. Nc3 {[%emt 0:02:06]} Bc2
{[%emt 0:00:13]} 44. Bc1 {[%emt 0:00:39]} Kd7 {[%emt 0:06:31]} 45. Kg1 {[%emt
0:01:51]} Kc6 {[%emt 0:00:45]} 46. Kf2 {[%emt 0:01:40]} Kc5 {[%emt 0:00:41]}
47. Ke3 {[%emt 0:09:23]} Kc4 {[%emt 0:00:29]} 48. Kd2 {[%emt 0:00:18]} Kb3 {
[%emt 0:01:14]} 49. Ne2 {[%emt 0:00:33]} Be4 {[%emt 0:02:38]} 50. g4 {[%emt 0:
00:32]} g5 {[%emt 0:02:45]} 51. Ke1 {[%emt 0:04:12]} h6 {[%emt 0:06:30]} 52.
Nd4+ {[%emt 0:00:25]} Ka2 {[%emt 0:01:08]} 53. Nb5 {[%emt 0:00:38]} Be5 {[%emt
0:00:13]} 54. Kd2 {[%emt 0:06:15]} Bc6 {[%emt 0:01:20]} 55. Nc3+ {[%emt 0:00:
13]} Kb3 {[%emt 0:00:05]} 56. Nd1 {[%emt 0:01:26]} Bg2 {[%emt 0:01:18]} 57. Ne3
{[%emt 0:00:10]} Bxh3 {[%emt 0:00:55]} 58. Ke2 {[%emt 0:00:30]} Bf4 {[%emt 0:
00:11]} 59. Kf3 {[%emt 0:00:15]} Bf1 {[%emt 0:00:28]} 60. Bd2 {[%emt 0:01:19]}
Ba6 {[%emt 0:00:43]} 61. Bb4 {[%emt 0:00:13]} Bb7+ {[%emt 0:00:07]} 62. Kf2 {
[%emt 0:00:16]} Be4 {[%emt 0:01:29]} 63. Bf8 {[%emt 0:00:41]} Bg6 {[%emt 0:00:
28]} 64. Kf3 {[%emt 0:00:47]} h5 {[%emt 0:00:17]} 65. gxh5 {[%emt 0:00:03]}
Bxh5+ {[%emt 0:00:04]} 66. Ke4 {[%emt 0:00:11]} Bg6+ {[%emt 0:00:10]} 67. Kf3 {
[%emt 0:00:58]} Be8 {[%emt 0:00:55]} 68. Be7 {[%emt 0:01:04]} Bc6+ {[%emt 0:00:
20]} 69. Ke2 {[%emt 0:00:28]} Be4 {[%emt 0:02:01]} 70. Kf2 {[%emt 0:00:28]} Bg6
{[%emt 0:02:05]} 71. Kf3 {[%emt 0:00:43]} Bh5+ {[%emt 0:00:14]} 72. Ke4 {[%emt
0:00:09]} Be8 {[%emt 0:01:10]} 73. Kf3 {[%emt 0:00:35]} Bd7 {[%emt 0:00:04]}
74. Bc5 {[%emt 0:01:35]} Be5 {[%emt 0:00:48]} 75. Be7 {[%emt 0:00:21]} g4+ {
[%emt 0:00:08]} 76. Nxg4 {[%emt 0:00:31]} Bxg4+ {[%emt 0:00:08]} 77. Kxg4 {
[%emt 0:00:02]} Bb2 {[%emt 0:00:06]} 78. Kf3 {[%emt 0:00:04]} Bxa3 {[%emt 0:00:
04]} 79. Bf6 {[%emt 0:00:05]} Bb4 {[%emt 0:01:14]} 80. Ke4 {[%emt 0:00:44]} a3
{[%emt 0:00:28]} 81. Kd3 {[%emt 0:00:08]} a2 {[%emt 0:00:05]} 82. Kd4 0-1

[Event "ETCC Open 2013"]
[Site "Warsaw"]
[Date "2013.11.12"]
[Round "5"]
[White "Palo, Davor"]
[Black "Holm, Kristian Stuvik"]
[Result "1-0"]
[ECO "E44"]
[WhiteElo "2553"]
[BlackElo "2281"]
[PlyCount "131"]
[EventDate "2013.??.??"]
[EventCountry "POL"]
[WhiteTeam "Dänemark"]
[BlackTeam "Norwegen"]
[WhiteTeamCountry "DEN"]
[BlackTeamCountry "NOR"]
[TimeControl "40/5400+30:1800+30"]

1. d4 {[%emt 0:00:00]} Nf6 {[%emt 0:00:00]} 2. c4 {[%emt 0:00:00]} e6 {[%emt 0:
00:00]} 3. Nc3 {[%emt 0:00:00]} Bb4 {[%emt 0:00:02]} 4. e3 {[%emt 0:00:00]} b6
{[%emt 0:00:19]} 5. Nge2 {[%emt 0:01:50]} Ne4 {[%emt 0:00:24]} 6. Qc2 {[%emt 0:
05:29]} Bb7 {[%emt 0:00:15]} 7. a3 {[%emt 0:02:22]} Bxc3+ {[%emt 0:00:58]} 8.
Nxc3 {[%emt 0:00:08]} Nxc3 {[%emt 0:00:07]} 9. Qxc3 {[%emt 0:00:12]} O-O {
[%emt 0:00:18]} 10. b4 {[%emt 0:01:20]} a5 {[%emt 0:01:16]} 11. Bb2 {[%emt 0:
06:47]} axb4 {[%emt 0:07:17]} 12. axb4 {[%emt 0:00:03]} Rxa1+ {[%emt 0:00:08]}
13. Bxa1 {[%emt 0:00:01]} Qg5 {[%emt 0:02:55]} 14. h4 {[%emt 0:14:05]} Qf6 {
[%emt 0:07:29]} 15. f3 {[%emt 0:09:03]} d6 {[%emt 0:02:42]} 16. Kf2 {[%emt 0:
02:30]} Nd7 {[%emt 0:01:31]} 17. Be2 {[%emt 0:00:26]} Ra8 {[%emt 0:10:48]} 18.
Bb2 {[%emt 0:01:47]} Qe7 {[%emt 0:09:19]} 19. g3 {[%emt 0:19:16]} f5 {[%emt 0:
04:57]} 20. Ra1 {[%emt 0:11:54]} Rxa1 {[%emt 0:01:27]} 21. Bxa1 {[%emt 0:00:00]
} Nf6 {[%emt 0:06:44]} 22. Qc2 {[%emt 0:00:58]} Qd7 {[%emt 0:14:41]} 23. Bb2 {
[%emt 0:02:02]} Kf7 {[%emt 0:00:47]} 24. Ba3 {[%emt 0:01:07]} h6 {[%emt 0:10:
33]} 25. b5 {[%emt 0:01:49]} Qe7 {[%emt 0:05:10]} 26. c5 {[%emt 0:01:13]} dxc5
{[%emt 0:00:31]} 27. dxc5 {[%emt 0:00:08]} bxc5 {[%emt 0:00:17]} 28. Bxc5 {
[%emt 0:00:27]} Qd7 {[%emt 0:00:30]} 29. Bd4 {[%emt 0:01:14]} Nd5 {[%emt 0:03:
09]} 30. Qc5 {[%emt 0:06:03]} Qe7 {[%emt 0:04:48]} 31. Qa7 {[%emt 0:01:41]} Bc8
{[%emt 0:01:07]} 32. Be5 {[%emt 0:03:51]} Qd7 {[%emt 0:02:54]} 33. Qd4 {[%emt
0:00:25]} Nf6 {[%emt 0:01:02]} 34. Qxd7+ {[%emt 0:01:01]} Nxd7 {[%emt 0:00:25]}
35. Bxc7 {[%emt 0:00:04]} g5 {[%emt 0:00:38]} 36. Bd8 {[%emt 0:02:59]} gxh4 {
[%emt 0:00:10]} 37. gxh4 {[%emt 0:00:09]} Ne5 {[%emt 0:01:16]} 38. Bc7 {[%emt
0:02:23]} Kf6 {[%emt 0:00:33]} 39. Kg3 {[%emt 0:01:00]} Bb7 {[%emt 0:01:19]}
40. b6 {[%emt 0:00:00]} Nd7 {[%emt 0:00:00]} 41. Bb5 {[%emt 0:12:29]} Ne5 {
[%emt 0:02:52]} 42. Be2 {[%emt 0:02:54]} Nd7 {[%emt 0:00:10]} 43. h5 {[%emt 0:
03:05]} Ke7 {[%emt 0:04:38]} 44. Kh4 {[%emt 0:00:42]} Kf6 {[%emt 0:01:56]} 45.
f4 {[%emt 0:03:59]} Ke7 {[%emt 0:02:04]} 46. Bb5 {[%emt 0:00:20]} Nf6 {[%emt 0:
05:45]} 47. Be5 {[%emt 0:01:17]} Kf7 {[%emt 0:01:39]} 48. Bd4 {[%emt 0:04:19]}
Ne4 {[%emt 0:01:19]} 49. Be2 {[%emt 0:01:23]} Nd2 {[%emt 0:02:22]} 50. Kg3 {
[%emt 0:01:29]} Ne4+ {[%emt 0:01:28]} 51. Kh2 {[%emt 0:01:59]} Nd2 {[%emt 0:00:
12]} 52. Kg1 {[%emt 0:00:31]} Ne4 {[%emt 0:02:19]} 53. Bd1 {[%emt 0:01:12]} Ba6
{[%emt 0:01:21]} 54. Bf3 {[%emt 0:00:49]} Bb7 {[%emt 0:00:27]} 55. Bg2 {[%emt
0:00:55]} Ba6 {[%emt 0:03:14]} 56. Bxe4 {[%emt 0:01:01]} fxe4 {[%emt 0:00:01]}
57. Kf2 {[%emt 0:00:07]} Kf8 {[%emt 0:01:30]} 58. Kg3 {[%emt 0:01:53]} Kf7 {
[%emt 0:00:14]} 59. Bc3 {[%emt 0:00:42]} Bc8 {[%emt 0:00:36]} 60. Bd4 {[%emt 0:
00:20]} Ba6 {[%emt 0:00:01]} 61. f5 {[%emt 0:01:04]} exf5 {[%emt 0:00:37]} 62.
Kf4 {[%emt 0:00:14]} Ke6 {[%emt 0:02:05]} 63. Bg7 {[%emt 0:00:10]} Kd7 {[%emt
0:01:29]} 64. Kxf5 {[%emt 0:00:22]} Be2 {[%emt 0:00:09]} 65. Kg6 {[%emt 0:00:
13]} Kc6 {[%emt 0:00:02]} 66. Bd4 {[%emt 0:00:11]} 1-0

[Event "ETCC Open 2013"]
[Site "Warsaw"]
[Date "2013.11.12"]
[Round "5"]
[White "Pancevski, Filip"]
[Black "Grandelius, Nils"]
[Result "1/2-1/2"]
[ECO "B51"]
[WhiteElo "2478"]
[BlackElo "2557"]
[PlyCount "125"]
[EventDate "2013.??.??"]
[EventCountry "POL"]
[WhiteTeam "Mazedonien"]
[BlackTeam "Schweden"]
[WhiteTeamCountry "MKD"]
[BlackTeamCountry "SWE"]
[TimeControl "40/5400+30:1800+30"]

1. e4 {[%emt 0:00:00]} c5 {[%emt 0:00:29]} 2. Nf3 {[%emt 0:00:00]} d6 {[%emt 0:
00:03]} 3. Bb5+ {[%emt 0:00:00]} Nd7 {[%emt 0:00:48]} 4. c3 {[%emt 0:00:00]}
Ngf6 {[%emt 0:00:31]} 5. Qe2 {[%emt 0:00:00]} a6 {[%emt 0:03:06]} 6. Ba4 {
[%emt 0:00:00]} b5 {[%emt 0:03:52]} 7. Bc2 {[%emt 0:01:02]} g6 {[%emt 0:01:34]}
8. O-O {[%emt 0:03:09]} Bg7 {[%emt 0:00:23]} 9. a4 {[%emt 0:00:25]} Bb7 {[%emt
0:05:16]} 10. Re1 {[%emt 0:01:41]} b4 {[%emt 0:20:27]} 11. cxb4 {[%emt 0:02:34]
} cxb4 {[%emt 0:01:17]} 12. d4 {[%emt 0:01:19]} O-O {[%emt 0:00:54]} 13. Nbd2 {
[%emt 0:02:19]} a5 {[%emt 0:07:51]} 14. Nb3 {[%emt 0:03:55]} e6 {[%emt 0:05:35]
} 15. Bd3 {[%emt 0:03:14]} Nb6 {[%emt 0:04:29]} 16. e5 {[%emt 0:16:55]} dxe5 {
[%emt 0:05:00]} 17. dxe5 {[%emt 0:02:59]} Nfd7 {[%emt 0:02:42]} 18. Bf4 {[%emt
0:03:45]} Nd5 {[%emt 0:00:44]} 19. Bg5 {[%emt 0:08:12]} Qb6 {[%emt 0:01:24]}
20. h4 {[%emt 0:10:51]} h6 {[%emt 0:02:30]} 21. Bd2 {[%emt 0:00:19]} Ne7 {
[%emt 0:00:02]} 22. Bf4 {[%emt 0:12:40]} Rfd8 {[%emt 0:06:30]} 23. Rac1 {[%emt
0:03:01]} Nf5 {[%emt 0:02:59]} 24. Be4 {[%emt 0:04:17]} Ba6 {[%emt 0:01:03]}
25. Qc2 {[%emt 0:03:02]} Rac8 {[%emt 0:00:02]} 26. Qb1 {[%emt 0:00:07]} Bc4 {
[%emt 0:09:32]} 27. Nbd2 {[%emt 0:06:06]} Ba6 {[%emt 0:00:01]} 28. Nb3 {[%emt
0:00:59]} Bc4 {[%emt 0:03:49]} 29. Nbd2 {[%emt 0:00:14]} Ba6 {[%emt 0:01:31]}
30. Rxc8 {[%emt 0:06:49]} Rxc8 {[%emt 0:00:14]} 31. h5 {[%emt 0:00:23]} g5 {
[%emt 0:01:20]} 32. Bxf5 {[%emt 0:00:17]} gxf4 {[%emt 0:01:05]} 33. Bd3 {[%emt
0:00:40]} Bb7 {[%emt 0:01:26]} 34. Bh7+ {[%emt 0:00:19]} Kf8 {[%emt 0:01:02]}
35. Be4 {[%emt 0:00:20]} Ba6 {[%emt 0:01:57]} 36. Bd3 {[%emt 0:00:01]} Rd8 {
[%emt 0:01:42]} 37. Bxa6 {[%emt 0:01:31]} Qxa6 {[%emt 0:00:02]} 38. Qc2 {[%emt
0:04:01]} Qc8 {[%emt 0:00:52]} 39. Nc4 {[%emt 0:01:24]} Nb6 {[%emt 0:03:15]}
40. Re4 {[%emt 0:00:00]} Nd5 {[%emt 0:00:00]} 41. Rd4 {[%emt 0:06:36]} Qc6 {
[%emt 0:07:36]} 42. Qd1 {[%emt 0:04:14]} Qc7 {[%emt 0:00:11]} 43. Qd3 {[%emt 0:
00:48]} Kg8 {[%emt 0:03:15]} 44. Kh2 {[%emt 0:00:10]} Rd7 {[%emt 0:03:50]} 45.
Qe4 {[%emt 0:08:05]} Qc6 {[%emt 0:00:18]} 46. b3 {[%emt 0:00:44]} Qa6 {[%emt 0:
02:22]} 47. Qd3 {[%emt 0:02:36]} Qa7 {[%emt 0:00:15]} 48. Qe4 {[%emt 0:02:16]}
Bf8 {[%emt 0:01:39]} 49. Rd2 {[%emt 0:02:16]} Bc5 {[%emt 0:00:38]} 50. Qc2 {
[%emt 0:02:42]} Nc3 {[%emt 0:08:50]} 51. Rxd7 {[%emt 0:01:36]} Qxd7 {[%emt 0:
00:01]} 52. Nxa5 {[%emt 0:00:39]} Qa7 {[%emt 0:00:01]} 53. Nc4 {[%emt 0:01:05]}
Bxf2 {[%emt 0:00:03]} 54. Nd6 {[%emt 0:00:49]} Qe3 {[%emt 0:03:58]} 55. a5 {
[%emt 0:01:14]} Qa7 {[%emt 0:03:18]} 56. Kh3 {[%emt 0:00:39]} Bc5 {[%emt 0:01:
05]} 57. Nc4 {[%emt 0:00:22]} Qa8 {[%emt 0:00:33]} 58. Qd3 {[%emt 0:00:51]} Ne4
{[%emt 0:00:23]} 59. Qd7 {[%emt 0:00:30]} Nf2+ {[%emt 0:00:26]} 60. Kh2 {[%emt
0:00:08]} Ng4+ {[%emt 0:00:01]} 61. Kh3 {[%emt 0:00:06]} Nf2+ {[%emt 0:00:01]}
62. Kh2 {[%emt 0:01:03]} Ng4+ {[%emt 0:00:01]} 63. Kh3 {[%emt 0:01:25]} 1/2-1/2

[Event "ETCC Open 2013"]
[Site "Warsaw"]
[Date "2013.11.12"]
[Round "5"]
[White "Tikkanen, Hans"]
[Black "Bogdanovski, Vlatko"]
[Result "1/2-1/2"]
[ECO "E19"]
[WhiteElo "2544"]
[BlackElo "2459"]
[PlyCount "160"]
[EventDate "2013.??.??"]
[EventCountry "POL"]
[WhiteTeam "Schweden"]
[BlackTeam "Mazedonien"]
[WhiteTeamCountry "SWE"]
[BlackTeamCountry "MKD"]
[TimeControl "40/5400+30:1800+30"]

1. Nf3 {[%emt 0:00:00]} Nf6 {[%emt 0:00:00]} 2. c4 {[%emt 0:00:00]} e6 {[%emt
0:00:00]} 3. g3 {[%emt 0:00:00]} a6 {[%emt 0:00:08]} 4. Bg2 {[%emt 0:00:00]} b5
{[%emt 0:00:07]} 5. d4 {[%emt 0:00:09]} Bb7 {[%emt 0:00:37]} 6. O-O {[%emt 0:
00:12]} Be7 {[%emt 0:00:39]} 7. b3 {[%emt 0:01:00]} c5 {[%emt 0:17:23]} 8. d5 {
[%emt 0:05:38]} exd5 {[%emt 0:04:39]} 9. Nh4 {[%emt 0:02:05]} g6 {[%emt 0:16:
39]} 10. cxd5 {[%emt 0:31:17]} d6 {[%emt 0:00:12]} 11. a4 {[%emt 0:03:42]} Nbd7
{[%emt 0:04:47]} 12. Na3 {[%emt 0:04:40]} O-O {[%emt 0:08:20]} 13. Bb2 {[%emt
0:05:54]} Qb6 {[%emt 0:04:30]} 14. Rb1 {[%emt 0:01:43]} Rfe8 {[%emt 0:01:02]}
15. e4 {[%emt 0:03:40]} Bf8 {[%emt 0:04:44]} 16. Re1 {[%emt 0:00:19]} Bg7 {
[%emt 0:00:12]} 17. f4 {[%emt 0:12:39]} Rad8 {[%emt 0:02:30]} 18. h3 {[%emt 0:
01:44]} Re7 {[%emt 0:08:50]} 19. Kh2 {[%emt 0:01:15]} Rde8 {[%emt 0:11:56]} 20.
e5 {[%emt 0:07:07]} dxe5 {[%emt 0:00:46]} 21. d6 {[%emt 0:00:05]} Re6 {[%emt 0:
00:07]} 22. Bxb7 {[%emt 0:00:15]} Rxd6 {[%emt 0:08:16]} 23. Qf3 {[%emt 0:00:26]
} e4 {[%emt 0:00:41]} 24. Bxe4 {[%emt 0:00:20]} Rde6 {[%emt 0:02:44]} 25. Rbd1
{[%emt 0:02:41]} Rxe4 {[%emt 0:01:24]} 26. Rxe4 {[%emt 0:01:00]} Rxe4 {[%emt 0:
00:02]} 27. Rxd7 {[%emt 0:01:08]} Nxd7 {[%emt 0:00:05]} 28. Bxg7 {[%emt 0:00:
02]} f5 {[%emt 0:01:21]} 29. Ba1 {[%emt 0:01:15]} Qc6 {[%emt 0:01:17]} 30. axb5
{[%emt 0:03:50]} axb5 {[%emt 0:00:01]} 31. Ng2 {[%emt 0:00:19]} Kf7 {[%emt 0:
00:11]} 32. Nb1 {[%emt 0:01:19]} Qe6 {[%emt 0:00:21]} 33. Nd2 {[%emt 0:02:41]}
Re2 {[%emt 0:00:29]} 34. Qd3 {[%emt 0:00:44]} c4 {[%emt 0:00:42]} 35. bxc4 {
[%emt 0:01:36]} Nc5 {[%emt 0:00:01]} 36. Qc3 {[%emt 0:00:24]} b4 {[%emt 0:01:
03]} 37. Qg7+ {[%emt 0:03:16]} Ke8 {[%emt 0:00:01]} 38. Qh8+ {[%emt 0:00:40]}
Kd7 {[%emt 0:00:14]} 39. Qxh7+ {[%emt 0:02:10]} Kc8 {[%emt 0:00:20]} 40. Be5 {
[%emt 0:00:00]} Qc6 {[%emt 0:00:00]} 41. Nf3 {[%emt 0:04:44]} Nd7 {[%emt 0:08:
04]} 42. Qe7 {[%emt 0:13:03]} b3 {[%emt 0:05:56]} 43. Qe8+ {[%emt 0:00:51]} Kb7
{[%emt 0:00:07]} 44. Qe7 {[%emt 0:00:03]} b2 {[%emt 0:05:25]} 45. Qb4+ {[%emt
0:00:05]} Kc8 {[%emt 0:00:32]} 46. Nfe1 {[%emt 0:01:52]} Rxe5 {[%emt 0:05:13]}
47. Qxb2 {[%emt 0:01:57]} Re4 {[%emt 0:00:16]} 48. Nf3 {[%emt 0:02:25]} Rxc4 {
[%emt 0:02:11]} 49. Qh8+ {[%emt 0:01:59]} Kc7 {[%emt 0:01:44]} 50. Ne5 {[%emt
0:00:21]} Nxe5 {[%emt 0:00:45]} 51. Qxe5+ {[%emt 0:00:06]} Kb7 {[%emt 0:00:20]}
52. Qe7+ {[%emt 0:02:15]} Kb6 {[%emt 0:00:13]} 53. Qe3+ {[%emt 0:00:14]} Kb5 {
[%emt 0:00:32]} 54. Qe5+ {[%emt 0:01:54]} Rc5 {[%emt 0:00:46]} 55. Qb2+ {[%emt
0:00:14]} Ka6 {[%emt 0:00:02]} 56. Qa3+ {[%emt 0:00:42]} Ra5 {[%emt 0:00:19]}
57. Qd3+ {[%emt 0:00:07]} Rb5 {[%emt 0:00:18]} 58. Qa3+ {[%emt 0:00:15]} Kb6 {
[%emt 0:00:08]} 59. Qe3+ {[%emt 0:00:07]} Rc5 {[%emt 0:01:53]} 60. Qb3+ {[%emt
0:00:31]} Qb5 {[%emt 0:00:21]} 61. Qxb5+ {[%emt 0:00:30]} Kxb5 {[%emt 0:00:05]}
62. Nh4 {[%emt 0:00:07]} Rc2+ {[%emt 0:00:06]} 63. Kg1 {[%emt 0:00:18]} Rc6 {
[%emt 0:01:26]} 64. Kf2 {[%emt 0:03:38]} Rf6 {[%emt 0:00:29]} 65. Ke3 {[%emt 0:
00:43]} Kc5 {[%emt 0:00:43]} 66. g4 {[%emt 0:02:31]} Kd5 {[%emt 0:00:18]} 67.
Kf3 {[%emt 0:03:00]} Kd4 {[%emt 0:01:49]} 68. Ng2 {[%emt 0:00:19]} Ra6 {[%emt
0:00:14]} 69. Nh4 {[%emt 0:00:02]} Rf6 {[%emt 0:04:21]} 70. Ng2 {[%emt 0:00:01]
} Kd5 {[%emt 0:00:29]} 71. Nh4 {[%emt 0:01:47]} Kd6 {[%emt 0:00:20]} 72. Kg3 {
[%emt 0:00:47]} Ke7 {[%emt 0:00:33]} 73. Nf3 {[%emt 0:00:09]} Ra6 {[%emt 0:00:
41]} 74. Ne5 {[%emt 0:00:15]} Ra3+ {[%emt 0:00:21]} 75. Kh4 {[%emt 0:00:14]}
Kf6 {[%emt 0:00:04]} 76. Nd7+ {[%emt 0:01:17]} Ke6 {[%emt 0:00:20]} 77. Ne5 {
[%emt 0:00:19]} Kf6 {[%emt 0:01:09]} 78. Nd7+ {[%emt 0:00:04]} Kg7 {[%emt 0:01:
39]} 79. gxf5 {[%emt 0:00:35]} gxf5 {[%emt 0:00:13]} 80. Kg5 {[%emt 0:00:01]}
Rxh3 {[%emt 0:01:04]} 1/2-1/2